[Event "I Torneo de Maestras 2019"]
[Site "Corralejo"]
[Date "2019.09.25"]
[Round "6.3"]
[White "Thomas, Anysia"]
[Black "Safranska, Anda"]
[Result "1/2-1/2"]
[ECO "A42"]
[WhiteElo "2112"]
[BlackElo "2139"]
[Annotator "NA"]
[PlyCount "57"]
[EventDate "2019.09.21"]
[EventType "tourn"]
[EventCountry "ESP"]
[SourceTitle "playchess.com"]
[Source "ChessBase"]
[SourceQuality "1"]
[TimeControl "5400+30"]

1. d4 {[%emt 0:00:00]} d6 {[%emt 0:00:00]} 2. Nf3 {[%emt 0:00:00]} g6 {[%emt 0:00:00]} 3. c4 {[%emt 0:00:00]} Bg7 {[%emt 0:00:00]} 4. Nc3 {[%emt 0:00:00]} e5 {[%emt 0:02:17]} 5. e4 {[%emt 0:01:06]} Nc6 {[%emt 0:00:41]} 6. Bg5 {[%emt 0:00:23]} f6 {[%emt 0:00:29]} 7. Be3 {[%emt 0:00:09]} Nh6 {[%emt 0:00:13]} 8. dxe5 {[%emt 0:00:45]} dxe5 {[%emt 0:01:12]} 9. Qxd8+ {[%emt 0:00:25]} Kxd8 {[%emt 0:00:09]} 10. O-O-O+ {[%emt 0:00:22]} Bd7 {[%emt 0:00:31]} 11. h3 {[%emt 0:01:01]} Kc8 {[%emt 0:02:05]} 12. c5 {[%emt 0:01:10]} Be6 {[%emt 0:00:17]} 13. g4 {[%emt 0:05:42]} Nf7 {[%emt 0:00:52]} 14. b3 {[%emt 0:04:06]} a5 {[%emt 0:08:58]} 15. Be2 {[%emt 0:03:38]} Rf8 {[%emt 0:08:00]} 16. Rhg1 {[%emt 0:03:46]} Bh6 {[%emt 0:12:24]} 17. Bxh6 {[%emt 0:15:52]} Nxh6 {[%emt 0:00:16]} 18. Rd2 {[%emt 0:00:08]} Nf7 {[%emt 0:01:38]} 19. Kb2 {[%emt 0:16:33]} Nfd8 {[%emt 0:07:59]} 20. Rgd1 {[%emt 0:04:05]} Bg8 {[%emt 0:09:40]} 21. Nd5 {[%emt 0:16:31]} Ne6 {[%emt 0:06:34]} 22. Rc1 {[%emt 0:02:02]} Kb8 {[%emt 0:02:32]} 23. Bb5 {[%emt 0:02:35]} Ncd4 {[%emt 0:09:59]} 24. Nxd4 {[%emt 0:00:10]} Nxd4 {[%emt 0:00:05]} 25. Bc4 {[%emt 0:03:06]} Bxd5 {[%emt 0:06:49]} 26. exd5 {[%emt 0:00:35]} Ka7 {[%emt 0:02:18]} 27. Rc3 {[%emt 0:01:45]} Rad8 {[%emt 0:02:38]} 28. Rcd3 {[%emt 0:03:26]} g5 {[%emt 0:00:33]} 29. Kc3 {[%emt 0:02:30]} 1/2-1/2

[Event "I Torneo de Maestras 2019"]
[Site "Corralejo"]
[Date "2019.09.25"]
[Round "6.4"]
[White "Drljevic, Ljilja"]
[Black "Guillo Longares, Cecilia"]
[Result "0-1"]
[ECO "B20"]
[WhiteElo "2162"]
[BlackElo "1960"]
[Annotator "NA"]
[PlyCount "80"]
[EventDate "2019.09.21"]
[EventType "tourn"]
[EventCountry "ESP"]
[SourceTitle "playchess.com"]
[Source "ChessBase"]
[SourceQuality "1"]
[TimeControl "5400+30"]

1. e4 {[%emt 0:00:18]} c5 {[%emt 0:00:00]} 2. d3 {[%emt 0:01:32]} g6 {[%emt 0:00:03]} 3. g3 {[%emt 0:00:04]} Bg7 {[%emt 0:00:06]} 4. Bg2 {[%emt 0:00:04]} Nc6 {[%emt 0:00:07]} 5. f4 {[%emt 0:00:36]} d6 {[%emt 0:00:23]} 6. Nh3 {[%emt 0:01:39]} e6 {[%emt 0:01:08]} 7. O-O {[%emt 0:01:38]} Nge7 {[%emt 0:00:08]} 8. g4 {[%emt 0:02:06]} f5 {[%emt 0:02:35]} 9. c3 {[%emt 0:04:52]} O-O {[%emt 0:02:04]} 10. Be3 {[%emt 0:10:56]} Rb8 {[%emt 0:01:50]} 11. a4 {[%emt 0:09:45]} a6 {[%emt 0:00:37]} 12. Nd2 {[%emt 0:00:33]} b5 {[%emt 0:00:35]} 13. axb5 {[%emt 0:01:06]} axb5 {[%emt 0:00:07]} 14. gxf5 {[%emt 0:06:59]} exf5 {[%emt 0:01:15]} 15. Qb3+ {[%emt 0:11:28]} Kh8 {[%emt 0:00:22]} 16. Ng5 {[%emt 0:00:54]} Qe8 {[%emt 0:00:38]} 17. e5 {[%emt 0:06:38]} c4 {[%emt 0:10:29]} 18. dxc4 {[%emt 0:02:07]} bxc4 {[%emt 0:00:09]} 19. Qxc4 {[%emt 0:06:50]} dxe5 {[%emt 0:00:43]} 20. b4 {[%emt 0:26:02]} e4 {[%emt 0:00:50]} 21. Nb3 {[%emt 0:00:49]} h6 {[%emt 0:01:56]} 22. Nh3 {[%emt 0:00:30]} Ng8 {[%emt 0:01:11]} 23. Nc5 {[%emt 0:00:27]} Nf6 {[%emt 0:01:22]} 24. Nf2 {[%emt 0:01:08]} Nd8 {[%emt 0:05:01]} 25. Bd4 {[%emt 0:02:08]} Be6 {[%emt 0:02:24]} 26. Qa6 {[%emt 0:00:50]} Nc6 {[%emt 0:03:22]} 27. Be5 {[%emt 0:00:24]} Bc8 {[%emt 0:01:29]} 28. Qa4 {[%emt 0:00:58]} Nxe5 {[%emt 0:00:22]} 29. fxe5 {[%emt 0:00:35]} Qxe5 {[%emt 0:04:25]} 30. Qa7 {[%emt 0:00:15]} Be6 {[%emt 0:02:46]} 31. Rfe1 {[%emt 0:00:41]} Bc4 {[%emt 0:04:23]} 32. Nfd3 {[%emt 0:00:34]} Qd6 {[%emt 0:03:37]} 33. Nb2 {[%emt 0:00:16]} Bd5 {[%emt 0:04:25]} 34. Nba4 {[%emt 0:00:42]} Ng4 {[%emt 0:02:35]} 35. Re2 {[%emt 0:00:35]} Bc4 {[%emt 0:03:40]} 36. Rae1 {[%emt 0:00:28]} Qxh2+ {[%emt 0:00:15]} 37. Kf1 {[%emt 0:00:03]} Ne3+ {[%emt 0:02:02]} 38. Kf2 {[%emt 0:00:02]} Nxg2 {[%emt 0:01:37]} 39. Rb2 {[%emt 0:01:02]} Nh4+ {[%emt 0:01:16]} 40. Ke3 {[%emt 0:00:42]} f4+ {[%emt 0:00:05] Kd4} 0-1

[Event "I Torneo de Maestras 2019"]
[Site "Corralejo"]
[Date "2019.09.25"]
[Round "6.5"]
[White "Sosa Suarez, Carla Cristina"]
[Black "Navrotescu, Andreea-Cristiana"]
[Result "0-1"]
[ECO "C06"]
[WhiteElo "2069"]
[BlackElo "2242"]
[Annotator "NA"]
[PlyCount "96"]
[EventDate "2019.09.21"]
[EventType "tourn"]
[EventCountry "ESP"]
[SourceTitle "playchess.com"]
[Source "ChessBase"]
[SourceQuality "1"]
[TimeControl "5400+30"]

1. e4 {[%emt 0:00:00]} e6 {[%emt 0:00:00]} 2. d4 {[%emt 0:00:00]} d5 {[%emt 0:00:00]} 3. Nd2 {[%emt 0:00:00]} Be7 {[%emt 0:00:00]} 4. Ngf3 {[%emt 0:00:31]} Nf6 {[%emt 0:00:00]} 5. e5 {[%emt 0:00:04]} Nfd7 {[%emt 0:00:03]} 6. Bd3 {[%emt 0:00:25]} c5 {[%emt 0:00:09]} 7. c3 {[%emt 0:00:11]} Nc6 {[%emt 0:00:14]} 8. O-O {[%emt 0:00:50]} g5 {[%emt 0:00:32]} 9. dxc5 {[%emt 0:00:11]} g4 {[%emt 0:00:24]} 10. Nd4 {[%emt 0:00:39]} Ndxe5 {[%emt 0:00:19]} 11. Bb5 {[%emt 0:01:28]} Bd7 {[%emt 0:01:01]} 12. Qe2 {[%emt 0:01:02]} Qc7 {[%emt 0:06:54]} 13. b4 {[%emt 0:01:02]} Ng6 {[%emt 0:19:26]} 14. N2b3 {[%emt 0:02:51]} e5 {[%emt 0:06:24]} 15. Nc2 {[%emt 0:00:20]} a6 {[%emt 0:05:32]} 16. Ba4 {[%emt 0:04:11]} h5 {[%emt 0:16:22]} 17. Rd1 {[%emt 0:22:11]} Be6 {[%emt 0:03:08]} 18. b5 {[%emt 0:00:43]} axb5 {[%emt 0:00:09]} 19. Bxb5 {[%emt 0:00:06]} Kf8 {[%emt 0:03:03]} 20. Nb4 {[%emt 0:04:12]} d4 {[%emt 0:07:27]} 21. Bc4 {[%emt 0:06:04]} d3 {[%emt 0:02:24]} 22. Qe4 {[%emt 0:15:27]} f5 {[%emt 0:08:30]} 23. Nd5 {[%emt 0:04:38]} fxe4 {[%emt 0:07:04]} 24. Nxc7 {[%emt 0:00:06]} Bxc4 {[%emt 0:00:06]} 25. Nxa8 {[%emt 0:00:11]} Nf4 {[%emt 0:03:22]} 26. Bxf4 {[%emt 0:01:12]} exf4 {[%emt 0:00:02]} 27. Nb6 {[%emt 0:01:48]} Be6 {[%emt 0:02:07]} 28. Re1 {[%emt 0:03:17]} Bf5 {[%emt 0:02:54]} 29. Nd5 {[%emt 0:01:18]} Bg5 {[%emt 0:02:50]} 30. Nd2 {[%emt 0:02:42]} f3 {[%emt 0:00:44]} 31. Ne3 {[%emt 0:02:57]} Bg6 {[%emt 0:00:49]} 32. Rab1 {[%emt 0:01:32]} Rh7 {[%emt 0:00:24]} 33. Rb6 {[%emt 0:05:24]} Bd8 {[%emt 0:00:45]} 34. Rbb1 {[%emt 0:02:14]} Ba5 {[%emt 0:01:02]} 35. Nd5 {[%emt 0:01:10]} Rd7 {[%emt 0:02:00]} 36. Nf6 {[%emt 0:01:25]} Re7 {[%emt 0:00:57]} 37. Nfxe4 {[%emt 0:01:09]} fxg2 {[%emt 0:00:02]} 38. Kxg2 {[%emt 0:01:52]} Ne5 {[%emt 0:00:22]} 39. Re3 {[%emt 0:05:15]} Nf3 {[%emt 0:00:26]} 40. Rb5 {[%emt 0:02:05]} Nxd2 {[%emt 0:00:47]} 41. Nxd2 {[%emt 0:00:10]} Rxe3 {[%emt 0:00:06]} 42. fxe3 {[%emt 0:00:04]} Bxc3 {[%emt 0:00:04]} 43. Rb6 {[%emt 0:01:40]} Be8 {[%emt 0:01:34]} 44. Ne4 {[%emt 0:00:49]} Ba5 {[%emt 0:00:18]} 45. Rd6 {[%emt 0:02:51]} Bc6 {[%emt 0:00:16]} 46. Rd4 {[%emt 0:02:17]} d2 {[%emt 0:00:17]} 47. Kg3 {[%emt 0:01:40]} Bxe4 {[%emt 0:00:09]} 48. Kf4 {[%emt 0:00:12]} Bf3 {[%emt 0:00:13]} 0-1

[Event "I Torneo de Maestras 2019"]
[Site "Corralejo"]
[Date "2019.09.25"]
[Round "7.1"]
[White "Navrotescu, Andreea-Cristiana"]
[Black "Palma, Maria"]
[Result "1-0"]
[ECO "A36"]
[WhiteElo "2242"]
[BlackElo "2100"]
[Annotator "ChessBase"]
[PlyCount "121"]
[EventDate "2019.09.21"]
[EventType "tourn"]
[EventCountry "ESP"]
[SourceTitle "playchess.com"]
[Source "ChessBase"]
[SourceQuality "1"]
[TimeControl "5400+30"]

1. c4 {[%emt 0:00:00]} Nf6 {[%emt 0:00:00]} 2. Nc3 {[%emt 0:00:00]} c5 {[%emt 0:00:00]} 3. e4 {[%emt 0:00:00]} Nc6 {[%emt 0:02:06]} 4. g3 {[%emt 0:00:00]} g6 {[%emt 0:02:06]} 5. Bg2 {[%emt 0:00:13]} Bg7 {[%emt 0:00:18]} 6. Nge2 {[%emt 0:01:27]} O-O {[%emt 0:00:32]} 7. d3 {[%emt 0:01:03]} d6 {[%emt 0:00:49]} 8. O-O {[%emt 0:00:54]} Bd7 {[%emt 0:01:25]} 9. a3 {[%emt 0:01:04]} Rb8 {[%emt 0:03:55]} 10. Rb1 {[%emt 0:00:42]} a6 {[%emt 0:07:24]} 11. b4 {[%emt 0:00:56]} cxb4 {[%emt 0:01:49]} 12. axb4 {[%emt 0:00:03]} b5 {[%emt 0:00:10]} 13. cxb5 {[%emt 0:04:29]} axb5 {[%emt 0:00:07]} 14. h3 {[%emt 0:01:29]} Ne8 {[%emt 0:03:35]} 15. Be3 {[%emt 0:09:35]} Nc7 {[%emt 0:02:56]} 16. Qd2 {[%emt 0:01:33]} e5 {[%emt 0:12:14]} 17. f4 {[%emt 0:04:39]} Ne6 {[%emt 0:05:54]} 18. f5 {[%emt 0:03:10]} Ned4 {[%emt 0:00:43]} 19. g4 {[%emt 0:02:12]} Ra8 {[%emt 0:14:09]} 20. Nd5 {[%emt 0:01:26]} f6 {[%emt 0:00:36]} 21. Nxd4 {[%emt 0:05:59]} exd4 {[%emt 0:01:20]} 22. Bf2 {[%emt 0:03:12]} Ra3 {[%emt 0:01:37]} 23. Ra1 {[%emt 0:00:47]} Ra4 {[%emt 0:06:54]} 24. Rxa4 {[%emt 0:10:05]} bxa4 {[%emt 0:00:07]} 25. Qa2 {[%emt 0:00:06]} Kh8 {[%emt 0:03:33]} 26. Qxa4 {[%emt 0:04:10]} Ne5 {[%emt 0:02:36]} 27. Qa6 {[%emt 0:01:35]} Qb8 {[%emt 0:00:53]} 28. Bxd4 {[%emt 0:02:15]} Bb5 {[%emt 0:01:03]} 29. Qa3 {[%emt 0:03:30]} Bxd3 {[%emt 0:03:00]} 30. Rc1 {[%emt 0:01:50]} Bb5 {[%emt 0:05:57]} 31. Rc7 {[%emt 0:03:17]} Rc8 {[%emt 0:04:24]} 32. Rxc8+ {[%emt 0:04:15]} Qxc8 {[%emt 0:00:06]} 33. Nb6 {[%emt 0:00:21]} Qc6 {[%emt 0:01:26]} 34. Qa8+ {[%emt 0:00:15]} Qxa8 {[%emt 0:00:07]} 35. Nxa8 {[%emt 0:00:02]} Bh6 {[%emt 0:01:53]} 36. Nc7 {[%emt 0:00:38]} Bd7 {[%emt 0:01:25]} 37. b5 {[%emt 0:00:31]} Bd2 {[%emt 0:00:37]} 38. b6 {[%emt 0:00:37]} Ba5 {[%emt 0:00:23]} 39. Nd5 {[%emt 0:00:48]} Bc6 {[%emt 0:01:20]} 40. Nxf6 {[%emt 0:01:53]} Kg7 {[%emt 0:00:10]} 41. Nd5 {[%emt 0:00:34]} Kf7 {[%emt 0:00:32]} 42. fxg6+ {[%emt 0:00:39]} hxg6 {[%emt 0:00:09]} 43. Kf2 {[%emt 0:05:47]} Nd7 {[%emt 0:03:15]} 44. Kg3 {[%emt 0:01:46]} Bxd5 {[%emt 0:01:29]} 45. exd5 {[%emt 0:00:02]} Nxb6 {[%emt 0:00:27]} 46. h4 {[%emt 0:00:24]} Be1+ {[%emt 0:00:49]} 47. Kh3 {[%emt 0:00:01]} Nd7 {[%emt 0:01:13]} 48. h5 {[%emt 0:03:56]} gxh5 {[%emt 0:00:10]} 49. gxh5 {[%emt 0:00:02]} Ne5 {[%emt 0:03:14]} 50. h6 {[%emt 0:06:01]} Kg6 {[%emt 0:01:42]} 51. Be3 {[%emt 0:00:01]} Bc3 {[%emt 0:01:32]} 52. Be4+ {[%emt 0:01:57]} Kh5 {[%emt 0:01:06]} 53. h7 {[%emt 0:01:05]} Nf7 {[%emt 0:00:07]} 54. Bf5 {[%emt 0:00:37]} Be5 {[%emt 0:00:43]} 55. Kg2 {[%emt 0:02:06]} Nh8 {[%emt 0:00:30]} 56. Kf3 {[%emt 0:00:50]} Ng6 {[%emt 0:00:25]} 57. Ke4 {[%emt 0:00:19]} Ne7 {[%emt 0:00:50]} 58. Bf4 {[%emt 0:00:57]} Bh8 {[%emt 0:00:22]} 59. Bxd6 {[%emt 0:00:25]} Nxf5 {[%emt 0:00:36]} 60. Kxf5 {[%emt 0:00:17]} Kh6 {[%emt 0:00:12]} 61. Be5 {[%emt 0:00:24]} 1-0

[Event "I Torneo de Maestras 2019"]
[Site "Corralejo"]
[Date "2019.09.25"]
[Round "7.2"]
[White "Guillo Longares, Cecilia"]
[Black "Sosa Suarez, Carla Cristina"]
[Result "1-0"]
[ECO "D36"]
[WhiteElo "1960"]
[BlackElo "2069"]
[Annotator "NA"]
[PlyCount "129"]
[EventDate "2019.09.21"]
[EventType "tourn"]
[EventCountry "ESP"]
[SourceTitle "playchess.com"]
[Source "ChessBase"]
[SourceQuality "1"]
[TimeControl "5400+30"]

1. c4 {[%emt 0:00:00]} e6 {[%emt 0:00:00]} 2. Nc3 {[%emt 0:00:00]} d5 {[%emt 0:00:00]} 3. d4 {[%emt 0:00:00]} Nf6 {[%emt 0:00:00]} 4. cxd5 {[%emt 0:00:00]} exd5 {[%emt 0:00:01]} 5. Bg5 {[%emt 0:00:00]} c6 {[%emt 0:00:04]} 6. e3 {[%emt 0:00:04]} h6 {[%emt 0:02:37]} 7. Bh4 {[%emt 0:00:16]} Be7 {[%emt 0:00:56]} 8. Bd3 {[%emt 0:00:21]} O-O {[%emt 0:00:53]} 9. Qc2 {[%emt 0:00:16]} Nbd7 {[%emt 0:02:08]} 10. Nf3 {[%emt 0:00:03]} Re8 {[%emt 0:00:59]} 11. O-O {[%emt 0:00:14]} Nf8 {[%emt 0:06:35]} 12. Rab1 {[%emt 0:01:28]} Ne4 {[%emt 0:06:51]} 13. Bxe4 {[%emt 0:05:18]} Bxh4 {[%emt 0:02:29]} 14. Bd3 {[%emt 0:00:11]} Bf6 {[%emt 0:03:20]} 15. b4 {[%emt 0:00:49]} a6 {[%emt 0:09:29]} 16. a4 {[%emt 0:00:51]} Bg4 {[%emt 0:01:11]} 17. Nd2 {[%emt 0:00:39]} Qd6 {[%emt 0:02:55]} 18. b5 {[%emt 0:02:04]} axb5 {[%emt 0:00:51]} 19. axb5 {[%emt 0:00:10]} Rec8 {[%emt 0:07:44]} 20. bxc6 {[%emt 0:02:25]} bxc6 {[%emt 0:00:59]} 21. Na4 {[%emt 0:01:10]} Nd7 {[%emt 0:04:19]} 22. h3 {[%emt 0:02:59]} Bh5 {[%emt 0:03:45]} 23. Rfc1 {[%emt 0:01:09]} Bd8 {[%emt 0:03:08]} 24. Bf5 {[%emt 0:05:52]} Bg6 {[%emt 0:04:24]} 25. Bxg6 {[%emt 0:01:06]} Qxg6 {[%emt 0:07:55]} 26. Qxg6 {[%emt 0:04:14]} fxg6 {[%emt 0:00:05]} 27. Rb7 {[%emt 0:00:37]} Nf6 {[%emt 0:07:49]} 28. Nb6 {[%emt 0:03:55]} Rcb8 {[%emt 0:02:16]} 29. Rxb8 {[%emt 0:01:29]} Rxb8 {[%emt 0:00:09]} 30. Na4 {[%emt 0:00:05]} Rb4 {[%emt 0:01:15]} 31. Nc5 {[%emt 0:00:33]} Be7 {[%emt 0:03:08]} 32. Nd3 {[%emt 0:03:09]} Rb6 {[%emt 0:00:12]} 33. Ne5 {[%emt 0:00:21]} Rb2 {[%emt 0:02:02]} 34. Ndf3 {[%emt 0:02:15]} Rb6 {[%emt 0:02:31]} 35. Nxg6 {[%emt 0:03:51]} Ba3 {[%emt 0:00:58]} 36. Rc2 {[%emt 0:02:25]} Ne4 {[%emt 0:01:05]} 37. Nfe5 {[%emt 0:01:21]} Rb1+ {[%emt 0:03:32]} 38. Kh2 {[%emt 0:00:10]} Rc1 {[%emt 0:01:08]} 39. Ne7+ {[%emt 0:07:05]} Kf8 {[%emt 0:01:21]} 40. Rxc1 {[%emt 0:00:06]} Bxc1 {[%emt 0:00:06]} 41. N5xc6 {[%emt 0:00:04]} Nc3 {[%emt 0:01:58]} 42. Ng6+ {[%emt 0:04:41]} Kf7 {[%emt 0:00:30]} 43. Nge5+ {[%emt 0:01:05]} Ke6 {[%emt 0:00:41]} 44. Nb4 {[%emt 0:00:40]} Ne4 {[%emt 0:02:05]} 45. Ned3 {[%emt 0:00:53]} Bd2 {[%emt 0:01:23]} 46. Nf4+ {[%emt 0:01:17]} Kd6 {[%emt 0:00:09]} 47. Nfxd5 {[%emt 0:00:48]} Nxf2 {[%emt 0:00:22]} 48. Kg3 {[%emt 0:00:26]} Nd1 {[%emt 0:01:05]} 49. e4 {[%emt 0:00:18]} Nc3 {[%emt 0:01:44]} 50. Nxc3 {[%emt 0:06:14]} Bxc3 {[%emt 0:00:04]} 51. Nc2 {[%emt 0:00:09]} g6 {[%emt 0:00:51]} 52. Kf4 {[%emt 0:02:03]} Bb2 {[%emt 0:00:44]} 53. Ke3 {[%emt 0:01:17]} Bc1+ {[%emt 0:00:52]} 54. Kd3 {[%emt 0:00:28]} Bf4 {[%emt 0:01:02]} 55. e5+ {[%emt 0:02:33]} Ke6 {[%emt 0:01:17]} 56. Ke4 {[%emt 0:00:09]} Bc1 {[%emt 0:00:28]} 57. d5+ {[%emt 0:00:35]} Kd7 {[%emt 0:00:19]} 58. d6 {[%emt 0:00:43]} Bg5 {[%emt 0:00:48]} 59. Kd5 {[%emt 0:00:11]} Bh4 {[%emt 0:00:47]} 60. e6+ {[%emt 0:00:11]} Kd8 {[%emt 0:00:44]} 61. Nd4 {[%emt 0:00:29]} Bg5 {[%emt 0:00:34]} 62. Nc6+ {[%emt 0:00:24]} Kc8 {[%emt 0:00:10]} 63. e7 {[%emt 0:01:37]} Kd7 {[%emt 0:00:16]} 64. Ne5+ {[%emt 0:00:06]} Ke8 {[%emt 0:00:11]} 65. Ke6 {[%emt 0:00:11]} 1-0

[Event "I Torneo de Maestras 2019"]
[Site "Corralejo"]
[Date "2019.09.25"]
[Round "7.3"]
[White "Safranska, Anda"]
[Black "Drljevic, Ljilja"]
[Result "0-1"]
[ECO "A05"]
[WhiteElo "2139"]
[BlackElo "2162"]
[Annotator "ChessBase"]
[PlyCount "76"]
[EventDate "2019.09.21"]
[EventType "tourn"]
[EventCountry "ESP"]
[SourceTitle "playchess.com"]
[Source "ChessBase"]
[SourceQuality "1"]
[TimeControl "5400+30"]

1. g3 {[%emt 0:01:03]} g6 {[%emt 0:00:45]} 2. Bg2 {[%emt 0:00:07]} Bg7 {[%emt 0:00:03]} 3. e4 {[%emt 0:00:24]} c5 {[%emt 0:00:58]} 4. d3 {[%emt 0:01:16]} Nc6 {[%emt 0:00:24]} 5. c3 {[%emt 0:01:38]} d6 {[%emt 0:10:47]} 6. Nf3 {[%emt 0:02:12]} Nf6 {[%emt 0:01:00]} 7. Na3 {[%emt 0:02:00]} O-O {[%emt 0:03:46]} 8. O-O {[%emt 0:00:07]} Rb8 {[%emt 0:05:34]} 9. Re1 {[%emt 0:01:02]} Bg4 {[%emt 0:10:51]} 10. h3 {[%emt 0:00:45]} Bxf3 {[%emt 0:00:37]} 11. Bxf3 {[%emt 0:01:48]} Nd7 {[%emt 0:02:31]} 12. Bg2 {[%emt 0:02:58]} Qa5 {[%emt 0:04:40]} 13. Nc2 {[%emt 0:03:50]} Rfc8 {[%emt 0:04:16]} 14. f4 {[%emt 0:09:58]} b5 {[%emt 0:01:13]} 15. a3 {[%emt 0:00:32]} Qa4 {[%emt 0:17:09]} 16. Bd2 {[%emt 0:14:12]} Na5 {[%emt 0:02:25]} 17. Rb1 {[%emt 0:02:38]} Nb3 {[%emt 0:04:47]} 18. Be3 {[%emt 0:02:14]} a5 {[%emt 0:03:30]} 19. Re2 {[%emt 0:01:56]} b4 {[%emt 0:08:39]} 20. axb4 {[%emt 0:01:39]} cxb4 {[%emt 0:02:41]} 21. cxb4 {[%emt 0:11:29]} axb4 {[%emt 0:03:40]} 22. Na1 {[%emt 0:04:20]} Ndc5 {[%emt 0:03:08]} 23. d4 {[%emt 0:01:18]} Nxa1 {[%emt 0:00:44]} 24. dxc5 {[%emt 0:00:30]} Nb3 {[%emt 0:01:13]} 25. cxd6 {[%emt 0:00:44]} exd6 {[%emt 0:00:43]} 26. Qd3 {[%emt 0:15:26]} Na5 {[%emt 0:02:13]} 27. Rd1 {[%emt 0:05:01]} b3 {[%emt 0:00:34]} 28. Kh2 {[%emt 0:03:40]} Qb5 {[%emt 0:02:31]} 29. Qxb5 {[%emt 0:04:15]} Rxb5 {[%emt 0:00:02]} 30. Bd4 {[%emt 0:02:58]} Rc2 {[%emt 0:00:48]} 31. Bf1 {[%emt 0:00:05]} Rb4 {[%emt 0:02:02]} 32. Bxg7 {[%emt 0:01:20]} Kxg7 {[%emt 0:00:03]} 33. Rxc2 {[%emt 0:00:54]} bxc2 {[%emt 0:00:03]} 34. Rc1 {[%emt 0:00:03]} Rxb2 {[%emt 0:00:23]} 35. Bd3 {[%emt 0:00:12]} Rb3 {[%emt 0:00:16]} 36. Bxc2 {[%emt 0:00:44]} Rc3 {[%emt 0:00:15]} 37. h4 {[%emt 0:02:14]} Nc4 {[%emt 0:00:50]} 38. Kh3 {[%emt 0:00:26]} Ne3 {[%emt 0:00:37]} 0-1

[Event "I Torneo de Maestras 2019"]
[Site "Corralejo"]
[Date "2019.09.25"]
[Round "7.5"]
[White "Martinez, Ayelen"]
[Black "Rodriguez Redondo, Adhara"]
[Result "1-0"]
[ECO "C54"]
[WhiteElo "2169"]
[BlackElo "2065"]
[Annotator "ChessBase"]
[PlyCount "103"]
[EventDate "2019.09.21"]
[EventType "tourn"]
[EventCountry "ESP"]
[SourceTitle "playchess.com"]
[Source "ChessBase"]
[SourceQuality "1"]
[TimeControl "5400+30"]

1. e4 {[%emt 0:02:18]} e5 {[%emt 0:00:00]} 2. Nf3 {[%emt 0:00:05]} Nc6 {[%emt 0:00:00]} 3. Bc4 {[%emt 0:00:04]} Bc5 {[%emt 0:00:00]} 4. O-O {[%emt 0:00:05]} Nf6 {[%emt 0:00:03]} 5. d3 {[%emt 0:00:10]} a6 {[%emt 0:01:04]} 6. c3 {[%emt 0:00:10]} Ba7 {[%emt 0:00:36]} 7. a4 {[%emt 0:01:56]} d6 {[%emt 0:00:53]} 8. Na3 {[%emt 0:00:08]} O-O {[%emt 0:01:24]} 9. Nc2 {[%emt 0:00:07]} Ne7 {[%emt 0:02:41]} 10. Be3 {[%emt 0:02:19]} Ng6 {[%emt 0:01:38]} 11. b4 {[%emt 0:01:28]} c6 {[%emt 0:02:02]} 12. Bb3 {[%emt 0:04:10]} h6 {[%emt 0:04:40]} 13. Qe1 {[%emt 0:03:40]} Re8 {[%emt 0:02:59]} 14. Bxa7 {[%emt 0:08:58]} Rxa7 {[%emt 0:00:22]} 15. Qe3 {[%emt 0:04:43]} Ra8 {[%emt 0:01:14]} 16. a5 {[%emt 0:10:19]} d5 {[%emt 0:03:56]} 17. Rfe1 {[%emt 0:03:14]} Be6 {[%emt 0:07:46]} 18. c4 {[%emt 0:01:38]} d4 {[%emt 0:03:10]} 19. Qc1 {[%emt 0:03:21]} Nh5 {[%emt 0:03:46]} 20. Rf1 {[%emt 0:01:24]} Nhf4 {[%emt 0:02:03]} 21. Qd2 {[%emt 0:00:28]} Qf6 {[%emt 0:01:34]} 22. Nce1 {[%emt 0:01:14]} Ne7 {[%emt 0:07:14]} 23. Kh1 {[%emt 0:04:06]} g5 {[%emt 0:04:14]} 24. g3 {[%emt 0:00:59]} Nfg6 {[%emt 0:01:04]} 25. Bd1 {[%emt 0:01:32]} Qg7 {[%emt 0:02:40]} 26. Ng1 {[%emt 0:04:30]} f5 {[%emt 0:02:22]} 27. exf5 {[%emt 0:02:11]} Nxf5 {[%emt 0:00:33]} 28. Bf3 {[%emt 0:06:39]} Nd6 {[%emt 0:03:26]} 29. Bg2 {[%emt 0:00:12]} Bf5 {[%emt 0:07:08]} 30. Nc2 {[%emt 0:08:46]} Rad8 {[%emt 0:01:37]} 31. f3 {[%emt 0:04:45]} Nf8 {[%emt 0:05:52]} 32. Nh3 {[%emt 0:00:48]} Qg6 {[%emt 0:01:48]} 33. Ne1 {[%emt 0:00:41]} Be6 {[%emt 0:04:49]} 34. Nc2 {[%emt 0:02:12]} Nf5 {[%emt 0:03:42]} 35. Nf2 {[%emt 0:01:50]} Nd7 {[%emt 0:02:22]} 36. Rae1 {[%emt 0:01:56]} Bf7 {[%emt 0:02:24]} 37. Re2 {[%emt 0:01:29]} Nd6 {[%emt 0:01:56]} 38. Ree1 {[%emt 0:03:01]} Nf6 {[%emt 0:05:32]} 39. Rc1 {[%emt 0:07:07]} Kg7 {[%emt 0:01:33]} 40. Rfe1 {[%emt 0:00:34]} Re6 {[%emt 0:03:46]} 41. f4 {[%emt 0:02:23]} Nf5 {[%emt 0:02:57]} 42. fxe5 {[%emt 0:00:36]} Nd7 {[%emt 0:00:42]} 43. g4 {[%emt 0:00:28]} Rxe5 {[%emt 0:01:06]} 44. gxf5 {[%emt 0:00:45]} Qxf5 {[%emt 0:00:40]} 45. Nxd4 {[%emt 0:00:29]} Qf6 {[%emt 0:00:29]} 46. Nf3 {[%emt 0:01:12]} Rf5 {[%emt 0:00:39]} 47. Ne4 {[%emt 0:01:10]} Qg6 {[%emt 0:00:20]} 48. Qc3+ {[%emt 0:00:05]} Kh7 {[%emt 0:00:26]} 49. Ng3 {[%emt 0:00:16]} Rf4 {[%emt 0:00:22]} 50. Re7 {[%emt 0:00:46]} Qd6 {[%emt 0:00:52]} 51. Rce1 {[%emt 0:00:06]} Kg8 {[%emt 0:00:28]} 52. Nh5 {[%emt 0:00:52]} 1-0